fUSD/lending_fUSD_20260314
["ID","MTS","AMOUNT","RATE_DAILY","PERIOD"]
[408346792,1773473432295,-1000.0,0.00018911,2]
[408346793,1773473432304,-500.0,0.00018999,2]
[408346795,1773473432313,-500.0,0.00019102,2]
[408346797,1773473432322,-760.55,0.00019105,2]
[408346799,1773473432332,-281.0301004,0.00019111,2]
[408346801,1773473432341,-151.0,0.00019111,2]
[408346803,1773473432355,-5805.19287412,0.00019123,2]
[408346805,1773473432365,-4170.94713746,0.00019123,2]
[408346807,1773473432376,-14335.54915443,0.00019123,2]
[408346834,1773473438148,-1335.68020852,0.00019123,2]
[408346839,1773473438242,-1058.806807,0.00019123,2]
[408346840,1773473438261,-1075.8759809,0.00019123,2]
[408346844,1773473440335,-1263.89833572,0.00019123,2]
[408346845,1773473440757,-279.89771197,0.00019123,2]
[408346846,1773473440769,-640.70959707,0.00019123,2]
[408346847,1773473440783,-8458.00219281,0.00019123,2]
[408346848,1773473440793,-2000.0,0.000192,2]
[408346849,1773473440802,-1000.0,0.0001926,2]
[408346850,1773473440811,-1000.0,0.00019534,2]
[408346851,1773473440821,-760.55,0.00019571,2]
[408346852,1773473440831,-11519.29780719,0.000198,2]
[408346853,1773473443190,-673.39902596,0.000198,2]
[408346854,1773473443449,-901.48698902,0.000198,2]
[408346874,1773473446379,-6833.52627783,0.000198,2]
[408346875,1773473446390,-257.50486,0.000198,2]
[408346876,1773473446399,-257.50487,0.000198,2]
[408346877,1773473446413,-507.21467603,0.000198,2]
[408346878,1773473446423,-1000.0,0.00019808,2]
[408346879,1773473446434,-14.82929955,0.00019811,2]
[408346880,1773473446446,-492.3853764,0.00019811,2]
[408346881,1773473446455,-61.99467181,0.00019822,2]
[408346928,1773473569340,2509.90356002,0.000328,120]
[408346929,1773473643028,500.0,0.0003287,120]
[408346930,1773473659310,3808.9522,0.000328,120]
[408346931,1773474099081,10000.0,0.00032877,120]
[408346932,1773474108010,10000.0,0.00032877,120]
[408346933,1773474124509,4322.28,0.00032877,120]
[408346934,1773474207666,3200.0,0.00032877,120]
[408346935,1773474313127,1089.93,0.00032877,120]
[408346936,1773474350319,277.11,9.363e-05,2]
[408346937,1773474350521,277.11,9.856e-05,2]
[408346938,1773474350739,277.11,0.00010349,2]
[408346939,1773474350957,277.11,0.00010842,2]
[408346940,1773474351150,277.11,0.00011334,2]
[408346941,1773474351351,277.11,0.00011827,2]
[408346942,1773474351538,277.11,0.0001232,2]
[408346943,1773474351746,277.11,0.00012813,2]
[408346944,1773474351959,277.11,0.00013306,2]
[408346945,1773474352165,277.11,0.00013798,2]
[408346946,1773474352390,277.11,0.00014291,2]
[408346955,1773474632224,-277.11,0.00014784,2]
[408346956,1773474632234,-273.0,0.00014784,2]
[408346957,1773474632245,-277.11,0.00015277,2]
[408346958,1773474632254,-78.27547409,0.0001577,2]
[408346959,1773474632279,-198.83452591,0.0001577,2]
[408346960,1773474632288,-277.11,0.00016262,2]
[408346961,1773474632297,-250.0,0.00016262,2]
[408346962,1773474632307,-277.11,0.00016755,2]
[408346963,1773474632317,-277.11,0.00017248,2]
[408346964,1773474632326,-277.11,0.00017741,2]
[408346965,1773474632336,-161.85381252,0.00018133,2]
[408346966,1773474632345,-277.11,0.00018234,2]
[408346967,1773474632355,-2121.14,0.00018579,2]
[408346968,1773474632364,-277.11,0.00018726,2]
[408346969,1773474632373,-632.82,0.00018787,2]
[408346970,1773474632382,-2470.16578197,0.00018842,2]
[408346971,1773474632391,-3599.1656,0.00018843,2]
[408346972,1773474632404,-300.0,0.00018872,2]
[408346973,1773474632414,-1200.0,0.00018872,2]
[408346974,1773474632423,-5042.84201427,0.00018873,2]
[408346975,1773474632433,-450.20120813,0.00018873,2]
[408346976,1773474632443,-5807.93831898,0.00018873,2]
[408346977,1773474632452,-11507.43338306,0.00018873,2]
[408346978,1773474632462,-483.0868,0.00018881,2]
[408346979,1773474632471,-150.0,0.00018899,2]
[408346981,1773474632481,-471.71551318,0.00018933,2]
[408346983,1773474632491,-241.00181962,0.00018936,2]
[408346985,1773474632500,-1484.77424901,0.00018937,4]
[408346987,1773474632510,-824.0,0.00018942,2]
[408346989,1773474632520,-500.0,0.00018942,2]
[408346991,1773474632529,-371.76101322,0.00018942,2]
[408346993,1773474632539,-500.0,0.00018942,2]
[408346995,1773474632549,-214.42349715,0.00018942,2]
[408346997,1773474632558,-500.0,0.00018942,2]
[408346999,1773474632568,-372.92084286,0.00018942,2]
[408347001,1773474632577,-500.0,0.00018942,2]
[408347003,1773474632587,-500.0,0.00018942,2]
[408347005,1773474632596,-500.0,0.00018942,2]
[408347007,1773474632605,-500.0,0.00018942,2]
[408347009,1773474632615,-500.0,0.00018942,2]
[408347011,1773474632624,-526.00665767,0.00018942,2]
[408347013,1773474632633,-500.0,0.00018942,2]
[408347015,1773474632642,-500.0,0.00018942,2]
[408347035,1773474632866,-526.00665767,0.00018942,2]
[408347036,1773474632877,-500.0,0.00018942,2]
[408347037,1773474632887,-500.0,0.00018942,2]
[408347038,1773474632897,-275.87221524,0.00018942,2]
[408347039,1773474632906,-500.0,0.00018942,2]
[408347040,1773474632915,-526.00665767,0.00018942,2]
[408347041,1773474632925,-285.24265642,0.00018942,2]
[408347042,1773474632935,-500.0,0.00018942,2]
[408347043,1773474632944,-363.79317763,0.00018942,2]
[408347044,1773474632955,-500.0,0.00018942,2]
[408347045,1773474632965,-526.00665767,0.00018942,2]
[408347046,1773474632974,-500.0,0.00018942,2]
[408347047,1773474632986,-573.37228288,0.00018942,2]
[408347048,1773474632997,-526.00665767,0.00018942,2]
[408347049,1773474633007,-500.0,0.00018942,2]
[408347050,1773474633016,-526.00665767,0.00018942,2]
[408347051,1773474633027,-500.0,0.00018942,2]
[408347052,1773474633036,-526.00665767,0.00018942,2]
[408347053,1773474633046,-500.0,0.00018942,2]
[408347054,1773474633055,-526.00665767,0.00018942,2]
[408347055,1773474633065,-500.0,0.00018942,2]
[408347056,1773474633074,-526.00665767,0.00018942,2]
[408347057,1773474633083,-500.0,0.00018942,2]
[408347058,1773474633093,-526.00665767,0.00018942,2]
[408347059,1773474633105,-537.81963834,0.00018942,2]
[408347060,1773474633115,-526.00665767,0.00018942,2]
[408347061,1773474633125,-500.0,0.00018942,2]
[408347062,1773474633136,-526.00665767,0.00018942,2]
[408347063,1773474633146,-500.0,0.00018942,2]
[408347064,1773474633156,-526.00665767,0.00018942,2]
[408347065,1773474633166,-500.0,0.00018942,2]
[408347066,1773474633177,-500.0,0.00018942,2]
[408347067,1773474633187,-526.00665767,0.00018942,2]
[408347068,1773474633196,-526.00665767,0.00018942,2]
[408347069,1773474633206,-500.0,0.00018942,2]
[408347070,1773474633216,-526.00665767,0.00018942,2]
[408347071,1773474633226,-526.00665767,0.00018942,2]
[408347072,1773474633236,-500.0,0.00018942,2]
[408347073,1773474633246,-526.00665767,0.00018942,2]
[408347074,1773474633256,-526.00665767,0.00018942,2]
[408347075,1773474633265,-526.00665767,0.00018942,2]
[408347076,1773474633276,-526.00665767,0.00018942,2]
[408347077,1773474633286,-526.00665767,0.00018942,2]
[408347078,1773474633297,-526.00665767,0.00018942,2]
[408347079,1773474633306,-526.00665767,0.00018942,2]
[408347080,1773474633317,-526.00665767,0.00018942,2]
[408347081,1773474633327,-526.00665767,0.00018942,2]
[408347082,1773474633337,-526.00665767,0.00018942,2]
[408347083,1773474633347,-526.00665767,0.00018942,2]
[408347084,1773474633357,-526.00665767,0.00018942,2]
[408347085,1773474633366,-526.00665767,0.00018942,2]
[408347086,1773474633378,-526.00665767,0.00018942,2]
[408347087,1773474633387,-526.00665767,0.00018942,2]
[408347088,1773474633397,-526.00665767,0.00018942,2]
[408347089,1773474633407,-526.00665767,0.00018942,2]
[408347090,1773474633416,-526.00665767,0.00018942,2]
[408347091,1773474633426,-526.00665767,0.00018942,2]
[408347092,1773474633435,-526.00665767,0.00018942,2]
[408347093,1773474633445,-526.00665767,0.00018942,2]
[408347094,1773474633456,-526.00665767,0.00018942,2]
[408347095,1773474633466,-526.00665767,0.00018942,2]
[408347096,1773474633475,-526.00665767,0.00018942,2]
[408347097,1773474633484,-526.00665767,0.00018942,2]
[408347098,1773474633498,-526.00665767,0.00018942,2]
[408347099,1773474633509,-526.00665767,0.00018942,2]
[408347100,1773474633519,-526.00665767,0.00018942,2]
[408347101,1773474633529,-526.00665767,0.00018942,2]
[408347102,1773474633540,-526.00665767,0.00018942,2]
[408347103,1773474633550,-526.00665767,0.00018942,2]
[408347104,1773474633559,-526.00665767,0.00018942,2]
[408347105,1773474633570,-526.00665767,0.00018942,2]
[408347106,1773474633582,-526.00665767,0.00018942,2]
[408347107,1773474633592,-500.0,0.00018942,2]
[408347108,1773474633602,-500.0,0.00018942,2]
[408347109,1773474633613,-500.0,0.00018942,2]
[408347110,1773474633625,-300.0,0.00018942,2]
[408347111,1773474633634,-1353.87610222,0.00018942,2]
[408347112,1773474633646,-1353.87610222,0.00018942,2]
[408347113,1773474633656,-1353.87610222,0.00018942,2]
[408347114,1773474633666,-1353.87610222,0.00018942,2]
[408347115,1773474633675,-1353.87610222,0.00018942,2]
[408347116,1773474633684,-1353.87610222,0.00018942,2]
[408347117,1773474633693,-1353.87610222,0.00018942,2]
[408347118,1773474633702,-1353.87610222,0.00018942,2]
[408347119,1773474633712,-1353.87610222,0.00018942,2]
[408347120,1773474633722,-1353.87610222,0.00018942,2]
[408347121,1773474633731,-1353.87610222,0.00018942,2]
[408347122,1773474633740,-1353.87610222,0.00018942,2]
[408347123,1773474633750,-1353.87610222,0.00018942,2]
[408347124,1773474633761,-1353.87610222,0.00018942,2]
[408347125,1773474633770,-1353.87610222,0.00018942,2]
[408347126,1773474633781,-1353.87610222,0.00018942,2]
[408347127,1773474633790,-1353.87610222,0.00018942,2]
[408347128,1773474633799,-1353.87610222,0.00018942,2]
[408347129,1773474633808,-1353.87610222,0.00018942,2]
[408347130,1773474633818,-1353.87610222,0.00018942,2]
[408347131,1773474633827,-1353.87610222,0.00018942,2]
[408347132,1773474633837,-1353.87610222,0.00018942,2]
[408347133,1773474633845,-1353.87610222,0.00018942,2]
[408347134,1773474633854,-1353.87610222,0.00018942,2]
[408347135,1773474633864,-1353.87610222,0.00018942,2]
[408347136,1773474633875,-1353.87610222,0.00018942,2]
[408347137,1773474633885,-1353.87610222,0.00018942,2]
[408347138,1773474633894,-1353.87610222,0.00018942,2]
[408347139,1773474633903,-1353.87610222,0.00018942,2]
[408347140,1773474633914,-1353.87610221,0.00018942,2]
[408347141,1773474633923,-1353.87610221,0.00018942,2]
[408347142,1773474633932,-1353.87610221,0.00018942,2]
[408347143,1773474633942,-1353.87610221,0.00018942,2]
[408347144,1773474633952,-1353.87610221,0.00018942,2]
[408347145,1773474633961,-1353.87610221,0.00018942,2]
[408347146,1773474633971,-1353.87610221,0.00018942,2]
[408347147,1773474633984,-300.0,0.00018942,2]
[408347148,1773474633994,-500.0,0.00018943,2]
[408347149,1773474634005,-500.0,0.00018943,2]
[408347150,1773474634015,-500.0,0.00018943,2]
[408347151,1773474634026,-500.0,0.00018943,2]
[408347152,1773474634036,-500.0,0.00018943,2]
[408347153,1773474634045,-500.0,0.00018943,2]
[408347154,1773474634056,-500.0,0.00018943,2]
[408347155,1773474634066,-500.0,0.00018943,2]
[408347156,1773474634075,-285.52,0.00018943,2]
[408347157,1773474634085,-500.0,0.00018943,2]
[408347158,1773474634094,-500.0,0.00018943,2]
[408347159,1773474634103,-500.0,0.00018943,2]
[408347160,1773474634113,-500.0,0.00018943,2]
[408347161,1773474634122,-500.0,0.00018943,2]
[408347162,1773474634131,-1517802.08628756,0.00018943,2]
[408347163,1773474634145,-1306.980303,0.00018943,2]
[408347164,1773474634157,-690.43888705,0.00018943,2]
[408347165,1773474634168,-15669.18778609,0.00018943,2]
[408347166,1773474634180,-65760.74473039,0.00018943,2]
[408347167,1773474634191,-2797.46638407,0.00018943,2]
[408347168,1773474634201,-29413.56528083,0.00018943,2]
[408347169,1773474634212,-5863.48717961,0.00018943,2]
[408347170,1773474638427,-2638.15312271,0.00018943,2]
[408347171,1773474638439,-49249.03429514,0.00018943,2]
[408347172,1773474638570,-1132.68254729,0.00018943,2]
[408347173,1773474638612,-807676.17319626,0.00018943,2]
[408347174,1773474638622,-500.0,0.00018973,2]
[408347175,1773474638631,-500.7472432,0.00018973,2]
[408347176,1773474638641,-502.73393858,0.00018973,2]
[408347177,1773474638650,-500.0,0.00018973,2]
[408347178,1773474638660,-500.92595041,0.00018973,2]
[408347179,1773474638669,-500.0,0.00018973,2]
[408347180,1773474638679,-500.99472326,0.00018973,2]
[408347181,1773474638688,-500.0,0.00018973,2]
[408347182,1773474638697,-500.0,0.00018973,2]
[408347183,1773474638706,-500.74255847,0.00018973,2]
[408347184,1773474638716,-500.54491678,0.00018973,2]
[408347185,1773474638726,-500.0,0.00018973,2]
[408347186,1773474638735,-501.74888707,0.00018973,2]
[408347187,1773474638745,-502.86209366,0.00018973,2]
[408347188,1773474638754,-500.0,0.00018973,2]
[408347190,1773474638763,-500.48871606,0.00018973,2]
[408347192,1773474638773,-505.74549276,0.00018973,2]
[408347194,1773474638783,-500.0,0.00018973,2]
[408347196,1773474638792,-500.0,0.00018973,2]
[408347198,1773474638801,-500.0,0.00018973,2]
[408347200,1773474638810,-160.48,0.0001898,2]
[408347202,1773474638819,-5042.84201424,0.00018987,2]
[408347204,1773474638829,-11507.43338301,0.00018987,2]
[408347206,1773474638838,-500.0,0.00018999,2]
[408347208,1773474638847,-5807.93831896,0.0001902,2]
[408347210,1773474638856,-1002.08186317,0.00019031,2]
[408347212,1773474638865,-9999.99,0.00019032,2]
[408347214,1773474638874,-516.95,0.00019032,2]
[408347216,1773474638884,-299.99,0.00019032,4]
[408347218,1773474638893,-4999.99,0.00019032,2]
[408347220,1773474638902,-9999.99,0.00019032,2]
[408347222,1773474638912,-38447.28,0.00019032,2]
[408347224,1773474638921,-150.99,0.00019032,2]
[408347225,1773474638931,-999.99,0.00019032,2]
[408347226,1773474638940,-150.99,0.00019032,2]
[408347227,1773474638949,-5341.21,0.00019032,2]
[408347228,1773474638958,-9999.99,0.00019032,2]
[408347230,1773474638967,-1970.92975208,0.00019032,2]
[408347231,1773474638976,-174.61919141,0.00019032,2]
[408347232,1773474638987,-151.0,0.00019032,2]
[408347233,1773474639001,-151.0,0.00019032,2]
[408347234,1773474639010,-196.12889,0.00019032,2]
[408347235,1773474639020,-196.12889,0.00019032,2]
[408347236,1773474639029,-2000.0,0.00019043,2]
[408347237,1773474639038,-9999.99,0.00019043,2]
[408347238,1773474639047,-430.57,0.00019043,2]
[408347239,1773474639056,-500.0,0.00019054,2]
[408347240,1773474639066,-500.0,0.00019073,2]
[408347241,1773474639075,-548.85686037,0.00019073,2]
[408347242,1773474639083,-500.0,0.00019073,2]
[408347243,1773474639093,-501.622235,0.00019073,2]
[408347244,1773474639103,-500.0,0.00019073,2]
[408347245,1773474639113,-500.0,0.00019073,2]
[408347246,1773474639123,-502.80302906,0.00019073,2]
[408347247,1773474639132,-190.70657286,0.00019073,2]
[408347248,1773474639142,-500.0,0.00019073,2]
[408347249,1773474639152,-500.0,0.00019073,2]
[408347250,1773474639162,-380.04711093,0.00019073,2]
[408347251,1773474639172,-500.0,0.00019073,2]
[408347252,1773474639182,-489.23340301,0.00019073,2]
[408347253,1773474639191,-500.0,0.00019073,2]
[408347254,1773474639201,-502.2733786,0.00019073,2]
[408347255,1773474639211,-500.0,0.00019073,2]
[408347256,1773474639221,-500.0,0.00019073,2]
[408347257,1773474639230,-500.0,0.00019073,2]
[408347258,1773474639240,-187.08160234,0.00019073,2]
[408347259,1773474639249,-500.0,0.00019073,2]
[408347260,1773474639259,-177.70128381,0.00019073,2]
[408347261,1773474639268,-500.0,0.00019073,2]
[408347262,1773474639278,-501.08688956,0.00019073,2]
[408347263,1773474639288,-500.0,0.00019073,2]
[408347264,1773474639298,-162.58845552,0.00019073,2]
[408347265,1773474639308,-385.96640857,0.00019073,2]
[408347266,1773474639318,-163.28363892,0.00019073,2]
[408347267,1773474639328,-502.29273933,0.00019073,2]
[408347268,1773474639338,-517.3737585,0.00019073,2]
[408347269,1773474639348,-500.0,0.00019073,2]
[408347270,1773474639358,-151.0,0.00019087,2]
[408347271,1773474639367,-5042.84201424,0.00019101,2]
[408347272,1773474639377,-11507.43338301,0.00019101,2]
[408347273,1773474639387,-994.44,0.00019106,2]
[408347274,1773474639397,-500.0,0.00019109,2]
[408347275,1773474639407,-1993.40129423,0.00019123,2]
[408347276,1773474639416,-166.68,0.00019157,2]
[408347277,1773474639425,-5807.93831896,0.00019166,2]
[408347278,1773474639435,-306.32762751,0.00019193,2]
[408347279,1773474639444,-2000.0,0.000192,2]
[408347280,1773474639453,-5042.84201424,0.00019215,2]
[408347281,1773474639463,-11507.43338301,0.00019215,2]
[408347282,1773474639472,-500.0,0.00019216,2]
[408347283,1773474639481,-1000.0,0.0001926,2]
[408347284,1773474639490,-500.0,0.00019261,2]
[408347285,1773474639499,-150.0,0.00019261,2]
[408347286,1773474639510,-500.0,0.00019261,2]
[408347287,1773474639520,-500.0,0.00019261,2]
[408347288,1773474639529,-500.0,0.00019261,2]
[408347289,1773474639538,-535.0,0.00019261,2]
[408347290,1773474639548,-150.0,0.00019261,2]
[408347291,1773474639557,-150.0,0.00019261,2]
[408347292,1773474639566,-3010.69718966,0.0001928,2]
[408347293,1773474639576,-196.12889,0.00019281,2]
[408347294,1773474639585,-196.12889,0.00019281,2]
[408347295,1773474639594,-250.0,0.00019281,2]
[408347296,1773474639604,-250.0,0.00019281,2]
[408347297,1773474639613,-500.0,0.00019281,2]
[408347298,1773474639623,-250.0,0.00019281,2]
[408347299,1773474639633,-500.0,0.00019281,2]
[408347300,1773474639642,-250.0,0.00019281,2]
[408347301,1773474639652,-494.1269886,0.00019281,2]
[408347302,1773474639661,-500.0,0.00019281,2]
[408347303,1773474639670,-250.0,0.00019281,2]
[408347304,1773474639679,-500.0,0.00019281,2]
[408347305,1773474639689,-1455.19462612,0.00019281,2]
[408347306,1773474639698,-250.0,0.00019281,2]
[408347307,1773474639708,-200.0,0.00019281,2]
[408347308,1773474639718,-500.0,0.00019281,2]
[408347309,1773474639728,-250.0,0.00019281,2]
[408347310,1773474639738,-500.0,0.00019281,2]
[408347311,1773474639748,-250.0,0.00019281,2]
[408347312,1773474639758,-500.0,0.00019281,2]
[408347313,1773474639769,-500.0,0.00019281,2]
[408347314,1773474639779,-500.0,0.00019281,2]
[408347315,1773474639788,-500.0,0.00019281,2]
[408347316,1773474639798,-500.0,0.00019281,2]
[408347317,1773474639807,-200.0,0.00019281,2]
[408347318,1773474639817,-500.0,0.00019281,2]
[408347319,1773474639827,-500.0,0.00019281,2]
[408347320,1773474639836,-277.35679052,0.00019281,2]
[408347321,1773474639846,-500.0,0.00019281,2]
[408347322,1773474639855,-500.0,0.00019281,2]
[408347323,1773474639865,-500.0,0.00019281,2]
[408347324,1773474639874,-500.0,0.00019281,2]
[408347325,1773474639884,-500.0,0.00019281,2]
[408347326,1773474639893,-500.0,0.00019281,2]
[408347327,1773474639902,-500.0,0.00019281,2]
[408347328,1773474639911,-500.0,0.00019281,2]
[408347329,1773474639921,-500.0,0.00019281,2]
[408347330,1773474639930,-500.0,0.00019281,2]
[408347331,1773474639940,-500.0,0.00019281,2]
[408347332,1773474639950,-3578.9344263,0.00019293,2]
[408347333,1773474639960,-2519.8868538,0.00019293,2]
[408347334,1773474639970,-4556.8971084,0.00019293,2]
[408347335,1773474639980,-3218.9673718,0.00019293,2]
[408347336,1773474639995,-13829.6122227,0.00019293,2]
[408347337,1773474640007,-539.269135,0.00019293,2]
[408347338,1773474640017,-371.212179,0.00019293,2]
[408347339,1773474640027,-371.212179,0.00019293,2]
[408347340,1773474640038,-371.212179,0.00019293,2]
[408347341,1773474640047,-371.212179,0.00019293,2]
[408347342,1773474640057,-156.565478,0.00019293,2]
[408347343,1773474640068,-244.578629,0.00019293,2]
[408347344,1773474640078,-244.578629,0.00019293,2]
[408347345,1773474640088,-244.578629,0.00019293,2]
[408347346,1773474640097,-244.578629,0.00019293,2]
[408347347,1773474640107,-188.29153,0.00019293,2]
[408347348,1773474640117,-5807.93831896,0.00019313,2]
[408347349,1773474640127,-500.0,0.00019316,2]
[408347350,1773474640137,-150.0,0.00019316,2]
[408347351,1773474640148,-500.0,0.00019316,2]
[408347352,1773474640157,-500.0,0.00019316,2]
[408347353,1773474640167,-500.0,0.00019316,2]
[408347354,1773474640177,-535.0,0.00019316,2]
[408347355,1773474640343,-150.0,0.00019316,2]
[408347356,1773474640354,-500.0,0.00019316,2]
[408347357,1773474640363,-5042.84201424,0.00019329,2]
[408347358,1773474640373,-11507.43338301,0.00019329,2]
[408347359,1773474640382,-4890.0,0.00019351,2]
[408347360,1773474640392,-500.0,0.00019371,2]
[408347361,1773474640401,-150.0,0.00019371,2]
[408347362,1773474640411,-500.0,0.00019371,2]
[408347363,1773474640421,-500.0,0.00019371,2]
[408347364,1773474640430,-500.0,0.00019371,2]
[408347365,1773474640439,-535.0,0.00019371,2]
[408347366,1773474640449,-150.0,0.00019371,2]
[408347367,1773474640458,-500.0,0.00019371,2]
[408347368,1773474640467,-500.0,0.0001938,2]
[408347369,1773474640476,-520.0,0.0001938,2]
[408347370,1773474640485,-500.0,0.0001938,2]
[408347371,1773474640495,-455.0,0.0001938,2]
[408347372,1773474640504,-500.0,0.0001938,2]
[408347373,1773474640513,-827.0,0.0001938,2]
[408347374,1773474640523,-597.0,0.0001938,2]
[408347375,1773474640533,-150.0,0.0001938,2]
[408347376,1773474640542,-150.0,0.0001938,2]
[408347377,1773474640553,-500.0,0.0001938,2]
[408347378,1773474640562,-151.04999774,0.0001938,2]
[408347379,1773474640572,-500.0,0.0001938,2]
[408347380,1773474640583,-500.0,0.0001938,2]
[408347381,1773474640592,-194.70190815,0.0001938,2]
[408347382,1773474640602,-500.0,0.0001938,2]
[408347383,1773474640612,-150.0,0.0001938,2]
[408347384,1773474640622,-500.0,0.0001938,2]
[408347385,1773474640631,-442.0,0.0001938,2]
[408347386,1773474640642,-500.0,0.0001938,2]
[408347387,1773474640651,-196.12889,0.0001938,2]
[408347388,1773474640660,-450.20120813,0.00019387,2]
[408347389,1773474640670,-500.0,0.00019425,2]
[408347390,1773474640679,-150.0,0.00019425,2]
[408347391,1773474640689,-500.0,0.00019425,2]
[408347392,1773474640698,-500.0,0.00019425,2]
[408347393,1773474640708,-500.0,0.00019425,2]
[408347394,1773474640717,-535.0,0.00019425,2]
[408347395,1773474640727,-232.79913095,0.00019426,2]
[408347396,1773474640736,-500.0,0.00019426,2]
[408347397,1773474640746,-500.0,0.00019435,2]
[408347398,1773474640756,-520.0,0.00019435,2]
[408347399,1773474640766,-500.0,0.00019435,2]
[408347400,1773474640775,-455.0,0.00019435,2]
[408347401,1773474640786,-500.0,0.00019435,2]
[408347402,1773474640796,-827.0,0.00019435,2]
[408347403,1773474640805,-597.0,0.00019435,2]
[408347404,1773474640815,-150.0,0.00019435,2]
[408347405,1773474640826,-150.0,0.00019435,2]
[408347406,1773474640837,-500.0,0.00019435,2]
[408347407,1773474640847,-500.0,0.00019435,2]
[408347408,1773474640860,-500.0,0.00019435,2]
[408347409,1773474640870,-500.0,0.00019435,2]
[408347410,1773474640880,-150.0,0.00019435,2]
[408347411,1773474640890,-500.0,0.00019435,2]
[408347412,1773474640899,-442.0,0.00019435,2]
[408347413,1773474640909,-500.0,0.00019435,2]
[408347414,1773474640918,-5042.84201424,0.00019444,2]
[408347415,1773474640928,-5807.93831896,0.0001946,2]
[408347416,1773474640938,-168.0,0.00019472,2]
[408347417,1773474640947,-500.0,0.0001948,2]
[408347418,1773474640956,-500.0,0.0001948,2]
[408347419,1773474640966,-172.57973834,0.0001948,2]
[408347420,1773474640976,-500.0,0.0001948,2]
[408347421,1773474640988,-500.0,0.0001948,2]
[408347422,1773474641000,-535.0,0.0001948,2]
[408347423,1773474641011,-373.84556233,0.0001948,2]
[408347424,1773474641021,-500.0,0.0001948,2]
[408347425,1773474641031,-153.79412431,0.0001949,2]
[408347426,1773474641041,-520.0,0.0001949,2]
[408347427,1773474641050,-500.0,0.0001949,2]
[408347428,1773474641059,-455.0,0.0001949,2]
[408347429,1773474641069,-500.0,0.0001949,2]
[408347430,1773474641079,-827.0,0.0001949,2]
[408347431,1773474641088,-597.0,0.0001949,2]
[408347432,1773474641099,-203.13892217,0.0001949,2]
[408347433,1773474641108,-150.0,0.0001949,2]
[408347434,1773474641119,-500.0,0.0001949,2]
[408347435,1773474641128,-500.0,0.0001949,2]
[408347436,1773474641139,-500.0,0.0001949,2]
[408347437,1773474641149,-500.0,0.0001949,2]
[408347438,1773474641158,-150.0,0.0001949,2]
[408347439,1773474641168,-500.0,0.0001949,2]
[408347440,1773474641177,-442.0,0.0001949,2]
[408347441,1773474641187,-500.0,0.0001949,2]
[408347442,1773474641196,-500.0,0.0001949,2]
[408347443,1773474641206,-2121.14,0.00019508,2]
[408347444,1773474641215,-1001.89195012,0.00019521,2]
[408347445,1773474641224,-271.73607655,0.00019521,2]
[408347446,1773474641233,-500.0,0.00019521,2]
[408347447,1773474641243,-1001.59412777,0.00019521,2]
[408347448,1773474641252,-1000.0,0.00019521,2]
[408347449,1773474641261,-1000.0,0.00019521,2]
[408347450,1773474641271,-1000.0,0.00019534,2]
[408347451,1773474641280,-500.0,0.00019535,2]
[408347452,1773474641290,-500.0,0.00019535,2]
[408347453,1773474641300,-500.0,0.00019535,2]
[408347454,1773474641310,-500.0,0.00019535,2]
[408347455,1773474641320,-535.0,0.00019535,2]
[408347456,1773474641330,-500.0,0.00019535,2]
[408347457,1773474641340,-371.212179,0.00019544,2]
[408347458,1773474641349,-371.212179,0.00019544,2]
[408347459,1773474641358,-371.212179,0.00019544,2]
[408347460,1773474641367,-371.212179,0.00019544,2]